bitfinex/quotes_BTCUSD_20240611
["timestamp","ask_amount","ask_price","bid_price","bid_amount"]
[1718078669311,2.52578183,68366.0,68365.0,0.001946]
[1718078669514,2.32578183,68366.0,68365.0,0.001946]
[1718078669744,2.47010176,68366.0,68365.0,0.001946]
[1718078670007,2.48410176,68366.0,68365.0,0.001946]
[1718078670204,2.48410176,68366.0,68337.0,0.01792378]
[1718078670205,0.42,68343.0,68337.0,0.01792378]
[1718078670340,0.42,68343.0,68337.0,0.11792378]
[1718078670341,0.70627989,68343.0,68337.0,0.11792378]
[1718078670760,0.70627989,68343.0,68342.0,0.250538]
[1718078670960,1.12,68338.0,68337.0,0.01792378]
[1718078671342,0.42,68333.0,68326.0,0.009438]
[1718078671558,0.63647989,68333.0,68326.0,0.009438]
[1718078671781,0.72927989,68333.0,68326.0,0.009438]
[1718078672714,0.54431993,68333.0,68326.0,0.009438]
[1718078672924,0.54431993,68333.0,68332.0,0.250538]
[1718078672925,0.24431993,68333.0,68332.0,0.250538]
[1718078673152,0.24431993,68333.0,68332.0,0.350538]
[1718078673153,0.34431993,68333.0,68332.0,0.350538]
[1718078673584,0.34531993,68333.0,68332.0,0.353538]
[1718078673986,0.34431993,68333.0,68332.0,0.350538]
[1718078674391,0.34531993,68333.0,68332.0,0.352538]
[1718078674683,0.34431993,68333.0,68332.0,0.350538]
[1718078675081,0.34531993,68333.0,68332.0,0.352538]
[1718078675509,0.34631993,68333.0,68332.0,0.356538]
[1718078675934,1.58111993,68333.0,68332.0,0.015438]
[1718078676138,1.73746193,68333.0,68332.0,0.015438]
[1718078676762,1.73746193,68333.0,68332.0,0.011438]
[1718078676937,1.73646193,68333.0,68332.0,0.011438]
[1718078677146,1.74246193,68333.0,68332.0,0.011438]
[1718078677364,1.74146193,68333.0,68332.0,0.009438]
[1718078677823,1.74546193,68333.0,68332.0,0.009438]
[1718078678237,1.35211993,68333.0,68332.0,0.009438]
[1718078678472,1.17731993,68333.0,68332.0,0.009438]
[1718078680115,1.18731993,68333.0,68332.0,0.009438]
[1718078681347,0.0794,68332.0,68326.0,0.009438]
[1718078681551,1.230155,68327.0,68326.0,0.009438]
[1718078681837,1.52537493,68327.0,68326.0,0.009438]
[1718078682050,1.91923557,68327.0,68326.0,0.009438]
[1718078682871,1.92323557,68327.0,68326.0,0.009438]
[1718078683490,1.80657493,68327.0,68326.0,0.009438]
[1718078683717,1.95479288,68327.0,68326.0,0.009438]
[1718078684148,1.96879288,68327.0,68326.0,0.009438]
[1718078684317,1.96479288,68327.0,68326.0,0.009438]
[1718078684532,1.95079288,68327.0,68326.0,0.009438]
[1718078684751,2.10911281,68327.0,68326.0,0.009438]
[1718078685064,2.11856181,68327.0,68326.0,0.009438]
[1718078685241,2.13256181,68327.0,68326.0,0.009438]
[1718078685665,1.91856181,68327.0,68326.0,0.009438]
[1718078685881,1.93256181,68327.0,68326.0,0.009438]
[1718078686088,1.91856181,68327.0,68326.0,0.009438]
[1718078686725,1.93256181,68327.0,68326.0,0.009438]
[1718078687390,1.78434386,68327.0,68326.0,0.009438]
[1718078687596,1.93430132,68327.0,68326.0,0.009438]
[1718078690453,1.93405821,68327.0,68326.0,0.009438]
[1718078691746,1.93405821,68327.0,68299.0,0.309514]
[1718078691747,1.865791,68310.0,68279.0,0.0791]
[1718078691952,1.865791,68310.0,68291.0,0.43295979]
[1718078691953,2.3422576,68310.0,68291.0,0.43295979]
[1718078692152,2.61600013,68310.0,68289.0,0.165]
[1718078693144,2.62071342,68310.0,68289.0,0.165]
[1718078693384,2.82071342,68310.0,68289.0,0.165]
[1718078693781,2.96503335,68310.0,68289.0,0.165]
[1718078693982,2.97503335,68310.0,68289.0,0.165]
[1718078694202,2.78903335,68310.0,68289.0,0.165]
[1718078694719,0.42,68278.0,68277.0,0.00022195]
[1718078694927,0.42,68278.0,68263.0,0.009438]
[1718078694928,0.2,68264.0,68263.0,0.009438]
[1718078695184,0.2,68264.0,68263.0,0.090738]
[1718078695185,0.54139522,68264.0,68263.0,0.090738]
[1718078695393,0.56139522,68264.0,68263.0,0.090738]
[1718078697372,0.75919522,68264.0,68263.0,0.009438]
[1718078697524,0.76019522,68264.0,68263.0,0.009438]
[1718078697755,0.75919522,68264.0,68263.0,0.009438]
[1718078697957,0.56139522,68264.0,68263.0,0.009438]
[1718078698158,0.56239522,68264.0,68263.0,0.247738]
[1718078698597,0.64139522,68264.0,68263.0,0.009438]
[1718078698803,0.64139522,68264.0,68235.0,0.083]
[1718078698804,1.37357329,68260.0,68238.0,0.1553]
[1718078698999,1.82364618,68260.0,68238.0,0.1553]
[1718078699204,1.99096611,68260.0,68238.0,0.1553]
[1718078699808,1.9909724,68260.0,68238.0,0.1553]
[1718078700328,2.0049724,68260.0,68238.0,0.1553]
[1718078700734,1.9909724,68260.0,68238.0,0.1553]
[1718078701165,1.85065247,68260.0,68238.0,0.1553]
[1718078701373,1.85065247,68260.0,68255.0,0.1651]
[1718078701374,1.31239522,68260.0,68255.0,0.1651]
[1718078701593,0.58939522,68260.0,68255.0,0.1651]
[1718078701810,0.56939522,68260.0,68255.0,0.1651]
[1718078702263,0.58939522,68260.0,68255.0,0.1651]
[1718078702468,0.56939522,68260.0,68255.0,0.1651]
[1718078702987,0.55539522,68260.0,68255.0,0.1651]
[1718078703218,0.57539522,68260.0,68255.0,0.1651]
[1718078703443,1.07539522,68260.0,68255.0,0.1651]
[1718078703882,0.55539522,68260.0,68256.0,0.146505]
[1718078704313,0.54139522,68260.0,68256.0,0.146505]
[1718078704524,0.54139522,68260.0,68257.0,0.155953]
[1718078704746,0.34139522,68260.0,68258.0,0.146501]
[1718078704962,0.34839522,68260.0,68259.0,0.2475171]
[1718078705195,0.34139522,68260.0,68259.0,0.2484631]
[1718078705420,0.24431993,68260.0,68259.0,0.3484631]
[1718078705626,0.24431993,68260.0,68259.0,0.3504631]
[1718078705835,0.24431993,68260.0,68259.0,0.3494631]
[1718078706883,0.24531993,68260.0,68259.0,0.3514631]
[1718078707083,0.24531993,68260.0,68259.0,0.3504631]
[1718078707633,0.24631993,68260.0,68259.0,0.3514631]
[1718078708214,0.24531993,68260.0,68259.0,0.3494631]
[1718078708623,0.24631993,68260.0,68259.0,0.3504631]
[1718078710238,0.24631993,68260.0,68259.0,0.4969631]
[1718078710446,0.14631993,68260.0,68259.0,0.4969631]
[1718078710660,0.002,68260.0,68259.0,0.4969631]
[1718078711849,0.1,68266.0,68264.0,0.2311]
[1718078711996,0.24431993,68266.0,68265.0,0.1]
[1718078712805,0.14431993,68266.0,68265.0,0.1]
[1718078713058,0.14531993,68266.0,68265.0,0.1]
[1718078713224,0.14531993,68266.0,68265.0,0.246487]
[1718078714491,0.14431993,68266.0,68265.0,0.246487]
[1718078714867,0.14531993,68266.0,68265.0,0.247487]
[1718078715457,0.14631993,68266.0,68265.0,0.249487]
[1718078716103,0.002,68266.0,68265.0,0.249487]
[1718078717625,0.002,68266.0,68265.0,0.249195]
[1718078718244,0.002,68266.0,68265.0,0.54217]
[1718078718443,0.002,68266.0,68265.0,0.78227]
[1718078719980,0.002,68266.0,68265.0,0.78417]
[1718078720275,0.002,68266.0,68265.0,0.95897]
[1718078721211,0.001,68266.0,68265.0,0.96885685]
[1718078721614,0.001,68266.0,68265.0,0.96785685]
[1718078721826,0.14928047,68277.0,68276.0,0.146464]
[1718078722043,0.2936004,68277.0,68276.0,0.24668595]
[1718078722177,0.24431993,68277.0,68276.0,0.24668595]
[1718078722870,0.14431993,68277.0,68276.0,0.24668595]
[1718078723696,0.1,68285.0,68278.0,0.292919]
[1718078723905,0.14431993,68284.0,68278.0,0.292919]
[1718078724076,0.14431993,68284.0,68283.0,0.1748]
[1718078724302,0.1,68285.0,68284.0,0.146447]
[1718078724508,0.24431993,68285.0,68284.0,0.246447]
[1718078725626,0.24431993,68285.0,68284.0,0.250447]
[1718078725828,0.24531993,68285.0,68284.0,0.256447]
[1718078728324,0.56239522,68285.0,68284.0,0.256447]
[1718078728534,0.54239522,68285.0,68284.0,0.256447]
[1718078731823,0.56239522,68285.0,68284.0,0.256447]
[1718078732970,0.56239522,68285.0,68284.0,0.256155]
[1718078736176,0.54239522,68285.0,68284.0,0.256155]
[1718078737348,0.54325522,68285.0,68284.0,0.256155]
[1718078737699,0.54325522,68285.0,68284.0,0.255863]
[1718078738064,0.56325522,68285.0,68284.0,0.255863]
[1718078738382,0.54325522,68285.0,68284.0,0.255863]
[1718078738977,0.34325522,68285.0,68284.0,0.255863]
[1718078739203,0.1,68278.0,68275.0,0.1]
[1718078739406,0.14431993,68277.0,68276.0,0.40959432]
[1718078741104,0.14531993,68277.0,68276.0,0.51559432]
[1718078742854,0.21747989,68277.0,68276.0,0.51559432]
[1718078743105,0.21747989,68277.0,68276.0,0.51959432]
[1718078743314,0.41747989,68277.0,68276.0,0.34479432]
[1718078744523,0.21747989,68277.0,68276.0,0.34479432]
[1718078747851,0.61887989,68277.0,68276.0,0.34479432]
[1718078748059,0.59887989,68277.0,68276.0,0.34479432]
[1718078749259,0.39887989,68277.0,68276.0,0.34479432]
[1718078749724,0.31747989,68277.0,68276.0,0.34479432]
[1718078749938,0.14531993,68277.0,68276.0,0.34479432]
[1718078750321,0.14531993,68277.0,68276.0,0.26764067]
[1718078750529,0.14531993,68277.0,68276.0,0.3509045]
[1718078751700,0.14531993,68277.0,68276.0,0.35076098]
[1718078754815,0.14531993,68277.0,68276.0,0.36876073]
[1718078755025,0.14531993,68277.0,68276.0,0.41248835]
[1718078755424,0.14531993,68277.0,68276.0,0.46822796]
[1718078755837,0.14531993,68277.0,68276.0,0.40263652]
[1718078756452,0.14531993,68277.0,68276.0,0.36876073]
[1718078757288,0.14531993,68277.0,68276.0,0.43435217]
[1718078757895,0.14531993,68277.0,68276.0,0.36876073]
[1718078758309,0.14531993,68277.0,68276.0,0.46823151]
[1718078758842,0.14531993,68277.0,68276.0,0.46831343]
[1718078759274,0.14531993,68277.0,68276.0,0.40264007]
[1718078761303,0.14531993,68277.0,68276.0,0.49020455]
[1718078762135,0.30401993,68277.0,68276.0,0.49020455]
[1718078762342,0.30401993,68277.0,68276.0,0.40264007]
[1718078762984,0.14531993,68277.0,68276.0,0.40264007]
[1718078763551,0.22601993,68277.0,68276.0,0.40264007]
[1718078764165,0.22601993,68277.0,68276.0,0.51218222]
[1718078766208,0.22601993,68277.0,68276.0,0.40264007]
[1718078766897,0.22601993,68277.0,68276.0,0.47264007]
[1718078767371,0.001,68277.0,68276.0,0.76556807]
[1718078768060,0.001,68277.0,68276.0,0.76601702]
[1718078769503,0.001,68277.0,68276.0,0.76765178]
[1718078770937,0.001,68277.0,68276.0,0.69765178]
[1718078771200,0.001,68277.0,68276.0,0.76765178]
[1718078771388,0.00186,68277.0,68276.0,0.76765178]
[1718078771662,0.00186,68277.0,68276.0,0.79370096]
[1718078773593,0.00186,68277.0,68276.0,0.72370096]
[1718078773801,0.00186,68277.0,68276.0,0.79370096]
[1718078776647,0.00186,68277.0,68276.0,1.03818196]
[1718078778311,0.00186,68277.0,68276.0,1.03796244]
[1718078780591,0.00186,68277.0,68276.0,1.16939051]
[1718078781322,0.00186,68277.0,68276.0,1.15835711]
[1718078781528,0.00186,68277.0,68276.0,1.16920341]
[1718078782309,0.00186,68277.0,68276.0,1.15835711]
[1718078782513,0.00186,68277.0,68276.0,1.16931243]
[1718078783242,0.00186,68277.0,68276.0,1.16514569]
[1718078784283,0.00186,68277.0,68276.0,1.09478817]
[1718078784528,0.00186,68277.0,68276.0,1.16478817]
[1718078784898,0.08386,68277.0,68276.0,1.16478817]
[1718078785076,0.63617993,68277.0,68276.0,0.43132999]
[1718078785476,0.63617993,68277.0,68276.0,0.26603551]
[1718078785794,0.63617993,68277.0,68276.0,0.17446375]
[1718078785991,1.33617993,68277.0,68276.0,0.02799975]
[1718078786200,1.34617993,68277.0,68276.0,0.006]
[1718078786683,1.34617993,68277.0,68276.0,0.01]
[1718078787248,1.34517993,68277.0,68276.0,0.004]
[1718078787630,1.34617993,68277.0,68276.0,0.01]
[1718078787846,1.34517993,68277.0,68276.0,0.004]
[1718078788173,0.32,68268.0,68267.0,0.0174608]
[1718078788391,0.53431993,68268.0,68267.0,0.00022195]
[1718078788794,0.46431993,68268.0,68267.0,0.00022195]
[1718078789000,0.56431993,68268.0,68267.0,0.00022195]
[1718078789406,0.56431993,68268.0,68267.0,0.00422195]
[1718078789844,0.57431993,68268.0,68267.0,0.00422195]
[1718078790646,0.57531993,68268.0,68267.0,0.01022195]
[1718078791944,0.57531993,68268.0,68267.0,0.00622195]
[1718078792355,0.11,68261.0,68260.0,0.01800538]
[1718078792590,0.42,68260.0,68259.0,0.2610631]
[1718078792800,0.87717989,68260.0,68259.0,0.1145631]
[1718078793007,0.87717989,68260.0,68259.0,0.0145631]
[1718078794550,0.87817989,68260.0,68259.0,0.0205631]
[1718078794974,0.87817989,68260.0,68259.0,0.0245631]
[1718078795507,0.87817989,68260.0,68259.0,0.0205631]
[1718078795891,0.87817989,68260.0,68259.0,0.0245631]
[1718078800332,0.88817989,68260.0,68259.0,0.0245631]
[1718078800743,0.88717989,68260.0,68259.0,0.0145631]
[1718078801191,0.88717989,68260.0,68259.0,0.0225631]
[1718078801699,0.88717989,68260.0,68257.0,0.009449]
[1718078801700,0.43,68258.0,68257.0,0.009449]
[1718078801928,0.81071993,68258.0,68257.0,0.009449]
[1718078802187,0.83371993,68258.0,68257.0,0.009449]
[1718078804246,0.83371993,68258.0,68257.0,0.010449]
[1718078804422,0.98022193,68258.0,68257.0,0.010449]
[1718078804632,0.98022193,68258.0,68257.0,0.013449]
[1718078804878,0.32,68249.0,68248.0,0.01751466]
[1718078805037,0.32,68249.0,68244.0,0.0004089]
[1718078805038,0.42,68245.0,68244.0,0.0004089]
[1718078805269,0.88407989,68245.0,68244.0,0.0004089]
[1718078805437,0.90707989,68245.0,68244.0,0.0004089]
[1718078806284,0.90707989,68245.0,68227.0,1.0]
[1718078806285,0.6631,68241.0,68227.0,1.0]
[1718078806493,1.12905893,68241.0,68228.0,0.01744784]
[1718078806749,1.15205893,68241.0,68227.0,1.0]
[1718078808234,0.4083,68228.0,68227.0,1.0]
[1718078808448,0.80791993,68228.0,68227.0,1.0]
[1718078809770,0.80891993,68228.0,68227.0,1.0]
[1718078814745,0.58891993,68228.0,68227.0,1.0]
[1718078815010,0.58891993,68228.0,68227.0,1.146569]
[1718078815011,0.34531993,68228.0,68227.0,1.146569]
[1718078815846,0.34531993,68228.0,68227.0,1.385769]
[1718078815847,0.24531993,68228.0,68227.0,1.385769]
[1718078816064,0.24431993,68228.0,68227.0,1.246569]
[1718078816519,0.24531993,68228.0,68227.0,1.246569]
[1718078816716,0.24431993,68228.0,68227.0,1.246569]
[1718078817148,0.24531993,68228.0,68227.0,1.246569]
[1718078818541,0.24531993,68228.0,68227.0,1.249569]
[1718078818542,0.24431993,68228.0,68227.0,1.249569]
[1718078818745,0.24431993,68228.0,68227.0,1.253569]
[1718078819215,0.24431993,68228.0,68227.0,1.249569]
[1718078819424,0.24431993,68228.0,68227.0,1.253569]
[1718078819658,0.24393096,68228.0,68227.0,1.250569]
[1718078819876,0.2,68242.0,68227.0,1.250569]
[1718078819877,0.1,68234.0,68228.0,0.1577]
[1718078820089,0.1,68237.0,68234.0,0.2582]
[1718078820310,0.1,68239.0,68238.0,0.146545]
[1718078820528,0.1,68239.0,68238.0,0.246545]
[1718078822068,0.1,68239.0,68238.0,0.250545]
[1718078822293,0.1,68239.0,68238.0,0.246545]
[1718078822717,0.1,68239.0,68238.0,0.253545]
[1718078822933,0.1,68239.0,68238.0,0.249545]
[1718078823347,0.1,68239.0,68238.0,0.250545]
[1718078823554,0.1,68239.0,68238.0,0.246545]
[1718078823771,0.14431993,68239.0,68238.0,0.246545]
[1718078823981,0.1,68248.0,68240.0,0.293082]
[1718078824201,0.24431993,68248.0,68247.0,0.146526]
[1718078824415,0.24431993,68248.0,68247.0,0.246526]
[1718078825507,0.80481993,68248.0,68247.0,0.249526]
[1718078825753,1.31481993,68248.0,68247.0,0.003]
[1718078825960,1.33781993,68248.0,68247.0,0.007]
[1718078826169,1.33781993,68248.0,68247.0,0.003]
[1718078826369,0.5605,68237.0,68236.0,0.146548]
[1718078826577,0.70481993,68237.0,68236.0,0.146548]
[1718078826787,0.68481993,68237.0,68236.0,0.146548]
[1718078827006,0.48481993,68237.0,68236.0,0.246548]
[1718078827446,0.68481993,68237.0,68236.0,0.246548]
[1718078827638,0.78481993,68237.0,68236.0,0.246548]
[1718078828065,0.58481993,68237.0,68236.0,0.246548]
[1718078828798,0.58481993,68237.0,68236.0,0.249548]
[1718078829000,0.80481993,68237.0,68236.0,0.249548]
[1718078829227,0.80481993,68237.0,68236.0,0.253548]
[1718078829968,0.80481993,68237.0,68236.0,0.007]
[1718078831035,0.80481993,68237.0,68236.0,0.004]
[1718078831249,0.80481993,68237.0,68236.0,0.007]
[1718078831689,0.80481993,68237.0,68236.0,0.003]
[1718078831889,0.80481993,68237.0,68228.0,0.1]
[1718078831890,0.4355,68229.0,68228.0,0.1]
[1718078832121,0.57981993,68229.0,68228.0,0.1]
[1718078833419,0.79981993,68229.0,68228.0,0.1]
[1718078833635,0.79981993,68229.0,68227.0,1.146569]
[1718078833636,0.5742,68228.0,68227.0,1.0]
[1718078833853,0.80061993,68228.0,68227.0,1.0]
[1718078835095,0.80061993,68228.0,68227.0,1.003]
[1718078835750,0.80061993,68228.0,68227.0,1.003946]
[1718078836603,0.80061993,68228.0,68227.0,1.007946]
[1718078842204,0.81061993,68228.0,68227.0,1.007946]
[1718078842415,1.30269737,68228.0,68227.0,1.007946]
[1718078842612,1.47226437,68228.0,68227.0,1.007946]
[1718078842817,1.36018693,68228.0,68227.0,1.007946]
[1718078843025,1.35018693,68228.0,68227.0,1.007946]
[1718078843265,1.36018693,68228.0,68227.0,1.007946]
[1718078843472,1.36018693,68228.0,68227.0,1.004946]
[1718078843873,1.36018693,68228.0,68227.0,1.007946]
[1718078844455,1.36018693,68228.0,68227.0,1.000946]
[1718078844667,1.36018693,68228.0,68227.0,1.005946]
[1718078844889,1.37218693,68228.0,68227.0,1.005946]
[1718078845070,1.37218693,68228.0,68227.0,1.001946]
[1718078845271,1.67030686,68228.0,68227.0,0.752046]
[1718078845472,2.13392609,68228.0,68227.0,0.253246]
[1718078845790,2.13392609,68228.0,68207.0,0.00946]
[1718078845791,0.4207,68208.0,68207.0,0.00946]
[1718078845959,0.56501993,68208.0,68207.0,0.00946]
[1718078846769,0.62081993,68208.0,68207.0,0.00946]
[1718078847392,0.34431993,68208.0,68207.0,0.00946]
[1718078847593,0.54431993,68208.0,68207.0,0.00946]
[1718078847791,0.56531993,68208.0,68207.0,0.01046]
[1718078848257,0.56431993,68208.0,68207.0,0.01046]
[1718078848410,0.56531993,68208.0,68207.0,0.01046]
[1718078849253,0.56431993,68208.0,68207.0,0.01046]
[1718078849661,0.56431993,68208.0,68207.0,0.00946]
[1718078850082,0.77371993,68208.0,68207.0,0.00946]
[1718078850285,0.88371993,68208.0,68207.0,0.00946]
[1718078850505,1.08201993,68208.0,68207.0,0.00946]
[1718078851473,0.90771993,68208.0,68207.0,0.00946]
[1718078851678,1.08301993,68208.0,68207.0,0.00946]
[1718078852305,1.09101993,68208.0,68207.0,0.00946]
[1718078852774,1.48813986,68208.0,68207.0,0.00946]
[1718078852996,1.78813986,68208.0,68207.0,0.00946]
[1718078853211,1.74346984,68208.0,68207.0,0.00946]
[1718078853660,1.94346984,68208.0,68207.0,0.00946]
[1718078853895,1.92746984,68208.0,68207.0,0.00946]
[1718078854343,2.24364671,68208.0,68207.0,0.00946]
[1718078854560,2.25564671,68208.0,68207.0,0.00946]
[1718078854774,1.457334,68197.0,68196.0,0.00946]
[1718078855013,1.69681389,68197.0,68196.0,0.00946]
[1718078855445,1.87211389,68197.0,68196.0,0.00946]
[1718078855868,1.91841389,68197.0,68196.0,0.00946]
[1718078856331,2.11841389,68197.0,68196.0,0.00946]
[1718078856571,2.27221389,68197.0,68196.0,0.00946]
[1718078856996,2.37221389,68197.0,68196.0,0.00946]
[1718078857209,2.37221389,68197.0,68171.0,0.009438]
[1718078857210,0.62,68172.0,68171.0,0.009438]
[1718078857448,0.83717989,68172.0,68171.0,0.009438]
[1718078857694,0.83717989,68172.0,68171.0,0.246338]
[1718078857695,0.54431993,68172.0,68171.0,0.246338]
[1718078857926,0.34431993,68172.0,68171.0,0.246338]
[1718078858365,0.34531993,68172.0,68171.0,0.246338]
[1718078859240,0.34531993,68172.0,68171.0,0.346338]
[1718078860368,0.54531993,68172.0,68171.0,0.346338]
[1718078860590,0.46531993,68172.0,68171.0,0.346338]
[1718078860820,1.06531993,68172.0,68171.0,0.009438]
[1718078861061,1.42901993,68172.0,68171.0,0.009438]
[1718078861271,1.52770793,68172.0,68171.0,0.009438]
[1718078861481,1.42901993,68172.0,68171.0,0.009438]
[1718078861692,1.42801993,68172.0,68171.0,0.009438]
[1718078861900,1.25271993,68172.0,68171.0,0.009438]
[1718078862111,1.42801993,68172.0,68171.0,0.009438]
[1718078862342,1.52801993,68172.0,68171.0,0.009438]
[1718078862540,1.55137219,68172.0,68171.0,0.009438]
[1718078862770,1.53201993,68172.0,68171.0,0.009438]
[1718078862987,1.52801993,68172.0,68171.0,0.009438]
[1718078863397,1.53201993,68172.0,68171.0,0.009438]
[1718078864463,1.56471993,68172.0,68171.0,0.009438]
[1718078864661,1.56871993,68172.0,68171.0,0.009438]
[1718078865103,1.72251993,68172.0,68171.0,0.009438]
[1718078865317,1.71851993,68172.0,68171.0,0.009438]
[1718078865518,1.72351993,68172.0,68171.0,0.009438]
[1718078866002,1.85883986,68172.0,68171.0,0.009438]
[1718078866208,2.06783986,68172.0,68171.0,0.009438]
[1718078866429,2.16783986,68172.0,68171.0,0.009438]
[1718078866644,2.15883986,68172.0,68171.0,0.009438]
[1718078867062,2.07983986,68172.0,68171.0,0.009438]
[1718078867265,2.17983986,68172.0,68171.0,0.009438]
[1718078867483,0.26531993,68172.0,68171.0,0.091438]
[1718078867762,0.26531993,68172.0,68171.0,0.009438]
[1718078867763,0.86610173,68172.0,68171.0,0.009438]
[1718078867976,0.88010173,68172.0,68171.0,0.009438]
[1718078868391,0.86810173,68172.0,68171.0,0.009438]
[1718078868621,0.85410173,68172.0,68171.0,0.009438]
[1718078868811,0.86810173,68172.0,68171.0,0.009438]
[1718078869660,0.85410173,68172.0,68171.0,0.009438]
[1718078869874,0.74431993,68172.0,68171.0,0.009438]
[1718078870095,0.24431993,68172.0,68171.0,0.009438]
[1718078870316,0.24431993,68172.0,68171.0,0.254238]
[1718078870541,0.33410173,68172.0,68171.0,0.254238]
[1718078870755,0.35410173,68172.0,68171.0,0.009438]
[1718078870982,0.35410173,68172.0,68171.0,0.010438]
[1718078871205,0.6032579,68172.0,68171.0,0.010438]
[1718078871422,0.6032579,68172.0,68171.0,0.009438]
[1718078871423,1.0553579,68172.0,68171.0,0.009438]
[1718078871652,1.0880579,68172.0,68171.0,0.009438]
[1718078871907,1.2880579,68172.0,68171.0,0.012438]
[1718078872123,1.0880579,68172.0,68171.0,0.011438]
[1718078872352,1.2880579,68172.0,68171.0,0.011438]
[1718078872579,1.2493579,68172.0,68171.0,0.011438]
[1718078872803,0.85740173,68172.0,68171.0,0.011438]
[1718078873012,0.48810173,68172.0,68171.0,0.011438]
[1718078873257,0.86510173,68172.0,68171.0,0.011438]
[1718078873490,0.34510173,68172.0,68171.0,0.009438]
[1718078873710,0.25531993,68172.0,68171.0,0.009438]
[1718078874160,0.26631993,68172.0,68171.0,0.242738]
[1718078874662,0.25531993,68172.0,68171.0,0.242738]
[1718078874862,0.24431993,68172.0,68171.0,0.242738]
[1718078875075,0.24431993,68172.0,68171.0,0.243738]
[1718078875303,0.24431993,68172.0,68171.0,0.245738]
[1718078875592,0.24431993,68172.0,68171.0,0.243738]
[1718078875817,0.24431993,68172.0,68171.0,0.343738]
[1718078876028,0.24431993,68172.0,68171.0,0.345738]
[1718078876029,0.14531993,68172.0,68171.0,0.345738]
[1718078876231,0.24431993,68172.0,68171.0,0.343738]
[1718078876456,0.14431993,68172.0,68171.0,0.343738]
[1718078876666,0.24531993,68172.0,68171.0,0.344738]
[1718078876882,0.35510173,68172.0,68171.0,0.091738]
[1718078877099,0.35510173,68172.0,68171.0,0.092738]
[1718078877308,0.35510173,68172.0,68171.0,0.012438]
[1718078877684,0.35510173,68172.0,68171.0,0.011438]
[1718078878111,0.35410173,68172.0,68171.0,0.010438]
[1718078878445,0.33510173,68172.0,68171.0,0.012438]
[1718078878578,0.33510173,68172.0,68171.0,0.011438]
[1718078878783,0.33410173,68172.0,68171.0,0.009438]
[1718078879253,0.33410173,68172.0,68171.0,0.011438]
[1718078879254,0.33510173,68172.0,68171.0,0.011438]
[1718078879856,0.37810173,68172.0,68171.0,0.011438]
[1718078880504,0.37810173,68172.0,68171.0,0.012438]
[1718078881086,0.37710173,68172.0,68171.0,0.009438]
[1718078881462,1.22700173,68172.0,68171.0,0.012438]
[1718078881688,1.27132166,68172.0,68171.0,0.012438]
[1718078882097,1.26132166,68172.0,68171.0,0.012438]
[1718078882281,1.12700173,68172.0,68171.0,0.011438]
[1718078882485,1.42129681,68172.0,68171.0,0.011438]
[1718078882882,0.53410173,68172.0,68171.0,0.009438]
[1718078883149,0.55410173,68172.0,68171.0,0.009438]
[1718078883354,0.33810173,68172.0,68171.0,0.009438]
[1718078883878,0.36210173,68172.0,68171.0,0.009438]
[1718078884332,0.35810173,68172.0,68171.0,0.009438]
[1718078884527,0.35410173,68172.0,68171.0,0.009438]
[1718078884742,0.33410173,68172.0,68171.0,0.012438]
[1718078884895,0.35410173,68172.0,68171.0,0.012438]
[1718078885109,0.35410173,68172.0,68171.0,0.011438]
[1718078885311,0.24431993,68172.0,68171.0,0.011438]
[1718078885531,0.24431993,68172.0,68171.0,0.010438]
[1718078885912,0.24431993,68172.0,68171.0,0.011438]
[1718078886116,0.24431993,68172.0,68171.0,0.010438]
[1718078886800,0.14431993,68172.0,68171.0,0.010438]
[1718078887007,0.14431993,68172.0,68171.0,0.009438]
[1718078887008,0.24431993,68172.0,68171.0,0.009438]
[1718078887153,0.24431993,68172.0,68171.0,0.12024649]
[1718078887522,0.24431993,68172.0,68171.0,0.22133735]
[1718078887523,0.14431993,68172.0,68171.0,0.22133735]
[1718078887733,0.14431993,68172.0,68171.0,0.44883735]
[1718078887973,0.14431993,68172.0,68171.0,0.44783735]
[1718078888215,0.14431993,68172.0,68171.0,0.44583735]
[1718078888423,0.14431993,68172.0,68171.0,0.44883735]
[1718078888851,0.14431993,68172.0,68171.0,0.44583735]
[1718078889061,0.14431993,68172.0,68171.0,0.44683735]
[1718078889294,0.14531993,68172.0,68171.0,0.44883735]
[1718078889514,0.14431993,68172.0,68171.0,0.44683735]
[1718078889744,0.35410173,68172.0,68171.0,0.34683735]
[1718078889961,0.35410173,68172.0,68171.0,0.010438]
[1718078890829,0.35410173,68172.0,68171.0,0.009438]
[1718078891044,0.35410173,68172.0,68171.0,0.010438]
[1718078891495,0.35410173,68172.0,68171.0,0.012438]
[1718078891729,0.35510173,68172.0,68171.0,0.012438]
[1718078891941,0.45710173,68172.0,68171.0,0.010438]
[1718078892158,0.45710173,68172.0,68171.0,0.009438]
[1718078892383,0.46810173,68172.0,68171.0,0.011438]
[1718078892597,0.45810173,68172.0,68171.0,0.012438]
[1718078893317,0.45810173,68172.0,68171.0,0.010438]
[1718078893318,0.48611741,68172.0,68171.0,0.010438]
[1718078893549,0.1,68142.0,68141.0,0.0778]
[1718078893796,0.1,68142.0,68140.0,0.00029351]
[1718078893797,0.1897818,68141.0,68140.0,0.00029351]
[1718078894031,0.2097818,68141.0,68140.0,0.00029351]
[1718078894238,0.25218699,68141.0,68140.0,0.00029351]
[1718078894450,0.39650692,68141.0,68140.0,0.00029351]
[1718078894902,0.15218699,68141.0,68140.0,0.23109351]
[1718078895116,0.07215996,68156.0,68143.0,0.1102182]
[1718078895117,0.1,68148.0,68143.0,0.1102182]
[1718078895321,0.1,68145.0,68144.0,0.2373]
[1718078895531,0.24431993,68145.0,68144.0,0.2373]
[1718078896719,0.33410173,68145.0,68144.0,0.2373]
[1718078896940,0.33410173,68145.0,68140.0,0.00229351]
[1718078896941,0.1,68141.0,68140.0,0.00229351]
[1718078897146,0.24431993,68141.0,68140.0,0.00229351]
[1718078897370,0.33410173,68141.0,68140.0,0.00229351]
[1718078897594,0.35410173,68141.0,68140.0,0.00229351]
[1718078897798,0.33410173,68141.0,68140.0,0.00229351]
[1718078898179,0.35410173,68141.0,68140.0,0.00029351]
[1718078899116,0.37710173,68141.0,68140.0,0.00029351]
[1718078899329,0.37810173,68141.0,68140.0,0.00229351]